bitfinex-derivatives/quotes_BTCF0:USTF0_20241116
["timestamp","ask_amount","ask_price","bid_price","bid_amount"]
[1731790070041,0.054936,90965.0,90963.0,0.0034359]
[1731790070244,0.08316,90968.0,90963.0,0.00343562]
[1731790070245,0.0653,90967.0,90963.0,0.00343562]
[1731790070443,0.05504141,90964.0,90963.0,0.00343562]
[1731790070853,0.41584141,90964.0,90963.0,0.00343562]
[1731790071340,0.4692833,90964.0,90963.0,0.00343562]
[1731790071556,0.4692833,90964.0,90963.0,0.00020761]
[1731790071740,0.66614185,90964.0,90963.0,0.00020761]
[1731790071943,0.4692833,90964.0,90963.0,1.255e-05]
[1731790072442,0.4692833,90964.0,90944.0,0.0016493]
[1731790072443,0.054945,90949.0,90944.0,0.0565973]
[1731790072649,0.054945,90949.0,90945.0,0.3749]
[1731790072955,0.13095431,90951.0,90946.0,0.1099342]
[1731790073149,0.13095431,90951.0,90949.0,0.054945]
[1731790073349,0.13095431,90951.0,90949.0,0.069045]
[1731790073852,0.13095431,90950.0,90949.0,0.069045]
[1731790074058,0.13095431,90951.0,90949.0,0.069045]
[1731790074257,0.13095431,90950.0,90949.0,0.0141]
[1731790074644,0.054944,90951.0,90949.0,0.0141]
[1731790075047,0.0322,90950.0,90949.0,0.0141]
[1731790075246,0.19589289,90950.0,90949.0,0.0141]
[1731790075555,0.19588567,90950.0,90949.0,0.0141]
[1731790075753,0.0322,90950.0,90949.0,0.0141]
[1731790075955,0.08564897,90950.0,90949.0,0.0141]
[1731790079258,0.0322,90950.0,90949.0,0.0141]
[1731790080456,0.21410912,90951.0,90949.0,0.0141]
[1731790080658,0.138104,90951.0,90949.0,0.0141]
[1731790081066,0.26905312,90951.0,90949.0,0.0141]
[1731790081257,0.138104,90951.0,90949.0,0.0141]
[1731790083453,0.0318,90950.0,90949.0,0.0141]
[1731790084463,0.19550677,90950.0,90949.0,0.0141]
[1731790085167,0.0318,90950.0,90949.0,0.0141]
[1731790087450,0.19550677,90950.0,90949.0,0.0141]
[1731790087654,0.0318,90950.0,90949.0,0.0141]
[1731790088262,0.16272867,90950.0,90949.0,0.0141]
[1731790088467,0.08316,90950.0,90949.0,0.0141]
[1731790088763,0.08316,90950.0,90949.0,0.04823668]
[1731790089263,0.49174935,90954.0,90949.0,0.0482365]
[1731790089562,0.3608,90954.0,90952.0,0.054943]
[1731790089873,0.3608,90954.0,90953.0,0.0034365]
[1731790090774,0.3608,90954.0,90953.0,0.20739368]
[1731790090965,0.3608,90954.0,90953.0,0.20395718]
[1731790091159,0.3608,90954.0,90953.0,0.20739319]
[1731790091766,0.05504141,90964.0,90954.0,0.054942]
[1731790091968,0.054938,90962.0,90961.0,0.054937]
[1731790092167,0.054938,90962.0,90961.0,0.05837301]
[1731790093368,0.00010541,90964.0,90963.0,0.054937]
[1731790093568,0.00010541,90964.0,90963.0,0.05837301]
[1731790095972,0.00010541,90964.0,90963.0,0.05837263]
[1731790097458,0.00010541,90964.0,90963.0,0.00343563]
[1731790097663,0.36090541,90964.0,90963.0,0.00343563]
[1731790097863,0.49746833,90964.0,90963.0,0.00343563]
[1731790098064,0.60764602,90964.0,90963.0,0.00343563]
[1731790099264,0.24684602,90964.0,90963.0,0.00343563]
[1731790099460,0.08322541,90964.0,90963.0,0.00343563]
[1731790099865,0.24684602,90964.0,90963.0,0.0034359]
[1731790100068,0.13816141,90964.0,90963.0,0.0034359]
[1731790100582,0.30178202,90964.0,90963.0,0.0034359]
[1731790101165,0.13816141,90964.0,90963.0,0.0034359]
[1731790101471,0.054937,90962.0,90951.0,0.19721773]
[1731790101673,0.054937,90962.0,90952.0,0.20752516]
[1731790101870,0.054939,90959.0,90958.0,0.05494]
[1731790103076,0.054943,90954.0,90952.0,0.069043]
[1731790103379,0.054943,90954.0,90952.0,0.0141]
[1731790104169,0.054943,90953.0,90952.0,0.0141]
[1731790104474,0.054943,90953.0,90952.0,0.069043]
[1731790105883,0.054943,90953.0,90952.0,0.0141]
[1731790109677,0.18588326,90953.0,90952.0,0.0141]
[1731790110480,0.054943,90953.0,90952.0,0.0141]
[1731790113380,0.054943,90953.0,90952.0,0.01753617]
[1731790113576,0.138063,90953.0,90952.0,0.01753617]
[1731790113777,0.138063,90953.0,90944.0,0.00164923]
[1731790113977,0.415748,90945.0,90944.0,0.00164923]
[1731790114172,0.46920128,90945.0,90944.0,0.00164923]
[1731790114679,0.054955,90932.0,90931.0,0.0051]
[1731790114977,0.054958,90928.0,90927.0,0.00012983]
[1731790115173,0.18591784,90928.0,90927.0,0.00012983]
[1731790115396,0.054958,90928.0,90927.0,0.00012983]
[1731790115681,0.054958,90928.0,90927.0,0.00562947]
[1731790116679,0.054958,90928.0,90927.0,0.05515411]
[1731790117780,0.086558,90928.0,90927.0,0.05515411]
[1731790118278,0.116558,90928.0,90927.0,0.05515411]
[1731790124887,0.054958,90928.0,90927.0,0.05515411]
[1731790125088,0.138118,90928.0,90927.0,0.05515411]
[1731790125282,0.08312,90930.0,90927.0,0.05515411]
[1731790125484,0.08312,90932.0,90928.0,0.0313]
[1731790125686,0.08312,90932.0,90930.0,0.054956]
[1731790125878,0.054954,90934.0,90930.0,0.054956]
[1731790126087,0.054954,90934.0,90931.0,0.054956]
[1731790126286,0.054954,90934.0,90930.0,0.05502428]
[1731790126287,0.054954,90934.0,90932.0,0.05839193]
[1731790126590,0.054951,90940.0,90933.0,0.05839093]
[1731790126891,0.054951,90940.0,90934.0,0.00343693]
[1731790126892,0.054953,90936.0,90934.0,0.00343693]
[1731790127089,0.054953,90936.0,90935.0,0.00343693]
[1731790127301,0.054953,90936.0,90935.0,0.05846121]
[1731790128577,0.3608,90940.0,90935.0,0.05846121]
[1731790128901,0.3608,90940.0,90935.0,0.05502428]
[1731790129195,0.13807,90942.0,90940.0,0.054951]
[1731790129681,0.05495,90941.0,90940.0,0.054951]
[1731790129998,0.05495,90941.0,90929.0,0.09401029]
[1731790129999,0.054951,90940.0,90934.0,0.054954]
[1731790130195,0.054951,90940.0,90929.0,0.09401029]
[1731790130382,0.054951,90940.0,90935.0,0.054954]
[1731790130781,0.054951,90940.0,90929.0,0.09401029]
[1731790131001,0.054951,90940.0,90936.0,0.054953]
[1731790131689,0.054951,90940.0,90937.0,0.054952]
[1731790132400,0.18587663,90940.0,90937.0,0.054952]
[1731790132585,0.054951,90940.0,90937.0,0.054952]
[1731790133291,0.054951,90940.0,90938.0,0.054951]
[1731790133589,0.054951,90939.0,90938.0,0.054951]
[1731790133793,0.054951,90939.0,90938.0,0.05838782]
[1731790133993,0.054951,90939.0,90938.0,0.1134121]
[1731790134491,0.18587663,90939.0,90938.0,0.1134121]
[1731790134796,0.18587663,90939.0,90938.0,0.10997528]
[1731790135485,0.054951,90939.0,90938.0,0.10997528]
[1731790135686,0.054951,90939.0,90938.0,0.11341213]
[1731790135880,0.18570086,90939.0,90938.0,0.11341213]
[1731790136387,0.18570086,90939.0,90938.0,0.05846113]
[1731790136587,0.054951,90939.0,90938.0,0.05846113]
[1731790136991,0.054951,90939.0,90938.0,0.00343685]
[1731790138086,0.08312,90942.0,90938.0,0.00343685]
[1731790138291,0.13082721,90939.0,90938.0,0.054952]
[1731790138490,0.13807,90942.0,90939.0,0.054951]
[1731790138695,0.13807,90942.0,90940.0,0.0034368]
[1731790139000,0.13807,90942.0,90941.0,0.0583868]
[1731790139204,0.13807,90942.0,90941.0,0.11341108]
[1731790140195,0.13087511,90946.0,90941.0,0.05846108]
[1731790140398,0.18585508,90946.0,90945.0,0.054948]
[1731790140584,0.054947,90946.0,90945.0,0.11340908]
[1731790140789,0.054947,90946.0,90945.0,0.05846108]
[1731790140984,0.18585508,90946.0,90945.0,0.05846108]
[1731790141299,0.054947,90946.0,90945.0,0.0034368]
[1731790142906,0.054952,90938.0,90937.0,0.054952]
[1731790143195,0.054952,90938.0,90937.0,0.10997628]
[1731790143792,0.054952,90938.0,90937.0,0.11341306]
[1731790146393,0.054952,90938.0,90937.0,0.00774149]
[1731790146601,0.16370255,90942.0,90941.0,0.05495]
[1731790146806,0.24678255,90945.0,90941.0,0.00343678]
[1731790147102,0.08308,90945.0,90944.0,0.054948]
[1731790147292,0.08308,90945.0,90944.0,0.05838478]
[1731790147494,0.054947,90946.0,90944.0,0.00343678]
[1731790147694,0.054947,90946.0,90945.0,0.05838478]
[1731790148807,0.054947,90946.0,90945.0,0.06270478]
[1731790149008,0.21864755,90950.0,90945.0,0.00775678]
[1731790149303,0.054944,90952.0,90950.0,0.054945]
[1731790149507,0.05659403,90951.0,90950.0,0.00775678]
[1731790154710,0.05659403,90951.0,90950.0,0.00775623]
[1731790154916,0.05659403,90951.0,90950.0,0.06270123]
[1731790155100,0.00165003,90951.0,90950.0,0.06270123]
[1731790155301,0.00165003,90951.0,90950.0,0.36986887]
[1731790155506,0.00165003,90951.0,90950.0,0.17265114]
[1731790155815,0.00165003,90951.0,90950.0,0.36986887]
[1731790156110,0.00165003,90951.0,90950.0,0.80691469]
[1731790156306,0.00165003,90951.0,90950.0,0.54375868]
[1731790156501,0.00165003,90951.0,90950.0,0.80691469]
[1731790156707,0.10889873,90960.0,90959.0,0.054939]
[1731790156911,0.10889873,90960.0,90959.0,0.05837523]
[1731790158105,0.10889873,90960.0,90959.0,0.0583749]
[1731790159017,0.10889873,90960.0,90959.0,0.06387232]
[1731790159804,0.10889873,90960.0,90959.0,0.0583749]
[1731790162109,0.10889873,90960.0,90959.0,0.0638724]
[1731790162706,0.10889873,90960.0,90959.0,0.0089334]
[1731790162915,0.52314116,90960.0,90945.0,0.054947]
[1731790163106,0.13095418,90946.0,90945.0,0.059267]
[1731790163309,0.16369273,90949.0,90945.0,0.00432]
[1731790163508,0.054947,90946.0,90945.0,0.00432]
[1731790164215,0.14893624,90946.0,90945.0,0.00432]
[1731790164416,0.20238818,90946.0,90945.0,0.00432]
[1731790165410,0.53226818,90946.0,90945.0,0.00432]
[1731790165608,0.054952,90937.0,90936.0,0.00164945]
[1731790165917,0.054952,90937.0,90929.0,0.3608]
[1731790165918,0.054956,90931.0,90929.0,0.3608]
[1731790166217,0.13094302,90930.0,90929.0,0.3608]
[1731790166415,0.054956,90931.0,90929.0,0.3608]
[1731790167121,0.054956,90931.0,90929.0,0.41558]
[1731790167316,0.14894524,90931.0,90929.0,0.41558]
[1731790167511,0.14894524,90931.0,90929.0,0.3608]
[1731790167816,0.054956,90931.0,90929.0,0.3608]
[1731790168919,0.054956,90931.0,90929.0,0.41558]
[1731790169417,0.10898617,90931.0,90929.0,0.05478]
[1731790173604,0.0316,90936.0,90929.0,0.05478]
[1731790173811,0.36148,90937.0,90935.0,0.09398924]
[1731790174117,0.3608,90937.0,90936.0,0.087853]
[1731790174416,0.08304,90944.0,90937.0,0.054952]
[1731790175005,0.08304,90944.0,90940.0,0.05495]
[1731790175210,0.00164993,90950.0,90941.0,0.09398924]
[1731790175211,0.08304,90946.0,90941.0,0.09398924]
[1731790175411,0.00164993,90950.0,90947.0,0.054946]
[1731790175622,0.05659493,90950.0,90947.0,0.054946]
[1731790176123,0.05659493,90950.0,90947.0,0.109726]
[1731790177314,0.054946,90949.0,90947.0,0.05478]
[1731790178024,0.054946,90949.0,90942.0,0.054949]
[1731790178318,0.054946,90949.0,90943.0,0.054949]
[1731790180321,0.054946,90949.0,90938.0,0.19745003]
[1731790180518,0.00164993,90950.0,90948.0,0.054946]
[1731790180827,0.00164993,90950.0,90948.0,0.109726]
[1731790181627,0.05659493,90950.0,90948.0,0.109726]
[1731790183222,0.05659493,90950.0,90948.0,0.05478]
[1731790183527,0.3608,90949.0,90942.0,0.054949]
[1731790183726,0.054948,90945.0,90942.0,0.054949]
[1731790185126,0.13085397,90948.0,90942.0,0.109729]
[1731790185315,0.054948,90944.0,90942.0,0.109729]
[1731790188116,0.13085397,90946.0,90945.0,0.054948]
[1731790188320,0.24672229,90951.0,90945.0,0.109728]
[1731790188321,0.054947,90947.0,90945.0,0.109728]
[1731790189531,0.13085266,90948.0,90947.0,0.054946]
[1731790189727,0.18579766,90949.0,90947.0,0.109726]
[1731790189925,0.13085266,90949.0,90947.0,0.109726]
[1731790190128,0.13085266,90950.0,90947.0,0.14876924]
[1731790190447,0.4438,90958.0,90949.0,0.054945]
[1731790190448,0.13085266,90951.0,90949.0,0.054945]
[1731790190633,0.13085266,90953.0,90951.0,0.054944]
[1731790190858,0.05504141,90964.0,90953.0,0.054943]
[1731790190859,0.13085266,90959.0,90953.0,0.054943]
[1731790191033,0.13085266,90961.0,90960.0,0.054938]
[1731790191332,0.13085266,90961.0,90954.0,0.0323]
[1731790191333,0.13086937,90961.0,90954.0,0.0323]
[1731790191630,0.13804141,90964.0,90963.0,0.054937]
[1731790195334,0.05504141,90964.0,90963.0,0.054937]
[1731790197029,0.00010541,90964.0,90963.0,0.054937]
[1731790198727,0.00010541,90964.0,90963.0,0.11661055]
[1731790199134,0.00010541,90964.0,90963.0,0.22654475]
[1731790199540,0.0557655,90980.0,90979.0,0.054927]
[1731790199837,0.0557655,90980.0,90977.0,0.06167355]
[1731790200539,0.1106925,90980.0,90979.0,0.054927]
[1731790201138,0.054931,90975.0,90974.0,0.05493]
[1731790201640,0.054931,90972.0,90971.0,0.10991487]
[1731790201945,0.3608,90975.0,90968.0,0.054933]
[1731790201946,0.054933,90969.0,90968.0,0.054933]
[1731790204347,0.3608,90975.0,90962.0,0.3608]
[1731790204549,0.49166937,90975.0,90962.0,0.415737]
[1731790204744,0.054935,90966.0,90963.0,0.16486516]
[1731790204934,0.054931,90972.0,90963.0,0.16486516]
[1731790205134,0.054935,90966.0,90963.0,0.16486516]
[1731790205438,0.054935,90966.0,90965.0,0.054935]
[1731790206647,0.054937,90963.0,90962.0,0.3608]
[1731790207345,0.054937,90963.0,90962.0,0.415737]
[1731790209439,0.13085705,90966.0,90949.0,0.09395772]
[1731790209633,0.05494,90959.0,90957.0,0.05494]
[1731790209938,0.05494,90958.0,90957.0,0.05494]
[1731790210845,0.18579705,90958.0,90957.0,0.05494]
[1731790211346,0.05494,90958.0,90957.0,0.05494]
[1731790211644,0.18579705,90958.0,90957.0,0.05494]
[1731790212445,0.05494,90958.0,90957.0,0.05494]
[1731790212643,0.13085705,90959.0,90958.0,0.05494]
[1731790212845,0.13085705,90962.0,90961.0,0.054938]
[1731790213051,0.13085705,90964.0,90960.0,0.3608]
[1731790213344,0.13074516,90964.0,90963.0,0.09395772]
[1731790213652,0.13074516,90965.0,90963.0,0.09395772]
[1731790214846,0.054933,90969.0,90968.0,0.054934]
[1731790215047,0.054936,90964.0,90963.0,0.14889472]
[1731790215355,0.054936,90964.0,90963.0,0.054937]
[1731790215745,0.083,90971.0,90961.0,0.0324]
[1731790215939,0.054933,90969.0,90968.0,0.054933]
[1731790216642,0.21374516,90971.0,90970.0,0.054932]
[1731790216842,0.13074516,90972.0,90970.0,0.09395772]
[1731790217046,0.13074516,90975.0,90974.0,0.05493]
[1731790217243,0.13081023,90975.0,90974.0,0.05493]
[1731790217445,0.13081023,90976.0,90975.0,0.054929]
[1731790217647,0.13081023,90978.0,90977.0,0.054928]
[1731790217845,0.08296,90981.0,90977.0,0.054928]
[1731790217846,0.13245961,90980.0,90978.0,0.054928]
[1731790218052,0.00164938,90980.0,90977.0,0.3608]
[1731790218253,0.00164938,90980.0,90979.0,0.16484791]
[1731790218645,0.00164938,90980.0,90979.0,0.087927]
[1731790218850,0.00164938,90980.0,90979.0,0.19784307]
[1731790219243,0.00164938,90980.0,90979.0,0.47130336]
[1731790219443,0.00164938,90980.0,90979.0,0.20814735]
[1731790219643,0.00164938,90980.0,90979.0,0.19784307]
[1731790220469,0.00164938,90980.0,90979.0,0.39522545]
[1731790220750,0.00164938,90980.0,90979.0,0.39522353]
[1731790220953,0.00164938,90980.0,90979.0,0.19784307]
[1731790221345,9.87e-05,90984.0,90983.0,0.054925]
[1731790226359,9.87e-05,90984.0,90983.0,0.16483503]
[1731790226856,0.13096469,90984.0,90983.0,0.16483503]
[1731790228051,0.13096469,90984.0,90983.0,0.68247047]
[1731790228254,0.060014,91001.0,90983.0,0.54502818]
[1731790228255,0.13086599,90989.0,90983.0,0.54502818]
[1731790228447,0.13086599,90990.0,90988.0,0.45475772]
[1731790228651,0.13086599,90992.0,90989.0,0.10426177]
[1731790228957,0.13086599,90992.0,90991.0,0.09395772]
[1731790229169,0.13086599,90993.0,90992.0,0.054919]
[1731790229458,0.13086599,90998.0,90996.0,0.054917]
[1731790229658,0.13086599,90998.0,90992.0,0.20499326]
[1731790229863,0.086212,91004.0,91003.0,0.054913]
[1731790230363,0.086212,91004.0,91003.0,0.05604938]
[1731790230551,0.086212,91004.0,91003.0,0.00113638]
[1731790230859,0.42681201,91004.0,91003.0,0.00113638]
[1731790231162,0.26312972,91004.0,91003.0,0.00113638]
[1731790231359,0.42681201,91004.0,91003.0,0.00113638]
[1731790231957,0.42681201,91004.0,90992.0,0.0051]
[1731790231958,0.054919,90993.0,90992.0,0.0051]
[1731790232156,0.13082351,90995.0,90981.0,0.0051]
[1731790232370,0.054922,90987.0,90985.0,0.054923]
[1731790232554,0.3608,90989.0,90985.0,0.054923]
[1731790232555,0.054923,90986.0,90985.0,0.054923]
[1731790233356,0.3608,90989.0,90979.0,0.3608]
[1731790233661,0.054922,90988.0,90980.0,0.054926]
[1731790233858,0.3608,90989.0,90980.0,0.054926]
[1731790234051,0.0332,90987.0,90980.0,0.054926]
[1731790234456,0.0332,90987.0,90980.0,0.109706]
[1731790234657,0.054926,90981.0,90980.0,0.109706]
[1731790235474,0.415726,90981.0,90980.0,0.05478]
[1731790235766,0.054927,90979.0,90978.0,0.00011957]
[1731790236670,0.054927,90979.0,90969.0,0.0051]
[1731790236671,0.054932,90970.0,90969.0,0.0051]
[1731790236966,0.054935,90965.0,90963.0,0.0051]
[1731790237174,0.054935,90965.0,90956.0,0.0051]
[1731790237357,0.054935,90965.0,90964.0,0.05642876]
[1731790237760,0.21849122,90965.0,90964.0,0.05642876]
[1731790238364,0.054935,90965.0,90964.0,0.05642876]
[1731790238572,0.21844673,90965.0,90964.0,0.05642876]
[1731790239165,0.10928064,90965.0,90964.0,0.05478]
[1731790240554,0.08296,90965.0,90964.0,0.109716]
[1731790241464,0.137895,90965.0,90964.0,0.05478]
[1731790242758,0.26869358,90965.0,90964.0,0.05478]
[1731790243470,0.137895,90965.0,90964.0,0.05478]
[1731790244066,0.08296,90965.0,90964.0,0.05478]
[1731790245058,0.3608,90972.0,90970.0,0.054932]
[1731790245376,0.415731,90972.0,90970.0,0.05478]
[1731790245579,0.415731,90972.0,90964.0,0.054936]
[1731790245580,0.054935,90965.0,90964.0,0.054936]
[1731790245774,0.054935,90965.0,90961.0,7.984e-05]
[1731790245775,0.054937,90963.0,90961.0,7.984e-05]
[1731790246159,0.054934,90968.0,90964.0,0.054936]
[1731790246361,0.054935,90966.0,90964.0,0.054936]
[1731790247667,0.054935,90966.0,90964.0,0.109716]
[1731790249162,0.054931,90972.0,90970.0,0.054932]
[1731790249355,0.054931,90972.0,90970.0,0.109712]
[1731790249871,0.08296,90978.0,90976.0,0.054929]
[1731790249872,0.137888,90978.0,90976.0,0.054929]
[1731790250170,0.054928,90978.0,90976.0,0.054929]
[1731790250372,0.054928,90978.0,90976.0,0.109709]
[1731790250873,0.3608,90980.0,90979.0,0.054927]
[1731790251065,0.3608,90980.0,90979.0,0.109707]
[1731790251961,0.08296,90985.0,90976.0,0.00840184]
[1731790251962,0.13079858,90983.0,90976.0,0.00840184]
[1731790252778,0.13079858,90984.0,90976.0,0.00840184]
[1731790252959,0.054926,90980.0,90979.0,0.054926]
[1731790253463,0.054926,90980.0,90979.0,0.109946]
[1731790253859,0.21375858,90985.0,90979.0,0.109946]
[1731790253860,0.054924,90984.0,90981.0,0.054926]
[1731790254062,0.054924,90984.0,90981.0,0.109946]
[1731790255164,0.18572258,90984.0,90981.0,0.109946]
[1731790255675,0.08296,90985.0,90981.0,0.109946]
[1731790255676,0.21375858,90985.0,90981.0,0.109946]
[1731790255872,0.13079858,90984.0,90981.0,0.109946]
[1731790256077,0.05657421,90982.0,90981.0,0.109946]
[1731790256978,0.05657421,90982.0,90981.0,0.05502]
[1731790257180,0.54817279,90982.0,90981.0,0.05502]
[1731790257476,0.41737421,90982.0,90981.0,0.05502]
[1731790257874,0.54821869,90982.0,90981.0,0.05502]
[1731790258170,0.41737421,90982.0,90981.0,0.05502]
[1731790260878,0.54823589,90982.0,90981.0,0.05502]
[1731790261878,0.41737421,90982.0,90981.0,0.05502]
[1731790262271,0.54835722,90982.0,90981.0,0.05502]
[1731790262471,0.41737421,90982.0,90981.0,0.05502]
[1731790262672,0.41737421,90982.0,90981.0,0.109946]
[1731790263078,0.05657421,90982.0,90981.0,0.109946]
[1731790265077,0.05657421,90982.0,90981.0,0.05502]
[1731790266479,0.18760977,90982.0,90981.0,0.05502]
[1731790266879,0.05657421,90982.0,90981.0,0.05502]
[1731790268087,0.054931,90972.0,90971.0,0.054931]
[1731790268794,0.054932,90970.0,90969.0,0.3608]
[1731790268981,0.13106529,90972.0,90963.0,0.19734209]
[1731790269285,0.7216,90977.0,90961.0,7.984e-05]
[1731790269286,0.054935,90966.0,90964.0,0.054936]
[1731790269484,0.08292,90974.0,90964.0,0.109956]
[1731790269485,0.054935,90965.0,90964.0,0.109956]
[1731790270989,0.054935,90965.0,90964.0,0.05502]
[1731790271889,0.21844673,90965.0,90964.0,0.05502]
[1731790272385,0.054935,90965.0,90964.0,0.05502]
[1731790272586,0.21883553,90965.0,90964.0,0.05502]
[1731790273599,0.10837796,90965.0,90964.0,0.05502]
[1731790273895,0.10837796,90965.0,90964.0,0.00316076]
[1731790274791,0.054935,90965.0,90964.0,0.00316076]
[1731790274988,0.054935,90965.0,90964.0,0.00295665]
[1731790274989,0.79897796,90965.0,90964.0,0.00295665]
[1731790275193,0.95625152,90965.0,90964.0,0.00295665]
[1731790275488,0.95625152,90965.0,90961.0,7.984e-05]
[1731790275696,0.95625152,90965.0,90944.0,0.00063]
[1731790275697,0.054943,90952.0,90944.0,0.00063]
[1731790275995,0.55210596,90952.0,90944.0,0.00063]
[1731790276301,0.49716296,90952.0,90944.0,0.00063]
[1731790276599,0.054949,90942.0,90940.0,0.05495]
[1731790276793,0.054949,90942.0,90941.0,9.325e-05]
[1731790277598,0.054949,90942.0,90941.0,0.05511325]
[1731790278197,0.054949,90942.0,90941.0,9.325e-05]
[1731790279683,0.054949,90942.0,90941.0,0.05511325]
[1731790281086,0.05535962,90943.0,90941.0,0.05511325]
[1731790281292,7.877e-05,90943.0,90941.0,0.11006325]
[1731790282398,7.877e-05,90943.0,90942.0,0.10445722]
[1731790282597,7.877e-05,90943.0,90942.0,0.19037722]
[1731790282989,7.877e-05,90943.0,90942.0,0.30033741]
[1731790283489,7.877e-05,90943.0,90942.0,0.19588019]
[1731790283695,0.054942,90955.0,90954.0,0.054942]
[1731790284406,0.3608,90963.0,90949.0,0.10445722]
[1731790284407,0.3608,90963.0,90950.0,0.0657]
[1731790284590,0.3608,90963.0,90957.0,0.10445722]
[1731790284792,0.3608,90963.0,90962.0,0.054937]
[1731790284996,0.00012434,90968.0,90967.0,0.054934]
[1731790285701,0.00012434,90968.0,90967.0,0.109954]
[1731790286198,0.00012434,90968.0,90967.0,0.58068337]
[1731790287807,0.00012434,90968.0,90967.0,0.59098949]
[1731790290001,0.00164921,90982.0,90967.0,0.92078949]
[1731790290307,0.00164921,90982.0,90979.0,0.054927]
[1731790290308,0.054926,90981.0,90979.0,0.054927]
[1731790290507,0.054926,90981.0,90979.0,0.109947]
[1731790291802,0.00164921,90982.0,90981.0,0.054926]
[1731790292005,0.00164921,90982.0,90981.0,0.109946]
[1731790292393,0.00164921,90982.0,90981.0,0.21986026]
[1731790297711,0.00164921,90982.0,90981.0,0.23016446]
[1731790300010,0.00164921,90982.0,90981.0,0.21986026]
[1731790301114,0.00011127,90988.0,90987.0,0.054922]
[1731790301409,0.00011127,90988.0,90987.0,0.00279181]
[1731790301713,0.00011127,90988.0,90980.0,0.10445722]
[1731790302012,0.00011127,90988.0,90981.0,0.1099052]
[1731790302403,0.00011127,90988.0,90987.0,0.054922]
[1731790304811,0.00011127,90988.0,90987.0,0.1648272]
[1731790305017,0.00011127,90988.0,90987.0,0.26928442]
[1731790305315,0.00011127,90988.0,90987.0,0.26940183]
[1731790305722,0.05491,91008.0,90997.0,0.10445722]
[1731790306019,0.44432,91009.0,91006.0,0.05491]
[1731790306214,0.05491,91007.0,91006.0,0.05491]
[1731790307217,0.41623304,91009.0,90997.0,0.10445722]
[1731790307407,0.054912,91004.0,91002.0,0.054912]
[1731790308314,0.054912,91004.0,91003.0,0.054913]
[1731790309117,0.41627304,91009.0,91008.0,0.05491]
[1731790309314,0.3608,91009.0,91008.0,0.05491]
[1731790309510,0.3608,91009.0,91006.0,0.10445722]
[1731790309511,0.05668721,91010.0,91009.0,0.054909]
[1731790312225,0.18763522,91010.0,91009.0,0.054909]
[1731790312409,0.05668721,91010.0,91009.0,0.054909]
[1731790312611,0.054911,91006.0,91005.0,0.054911]
[1731790313114,0.13096395,91007.0,91000.0,0.16479263]
[1731790313319,0.0305,91005.0,91000.0,0.054914]
[1731790313620,0.054916,90998.0,90990.0,0.10445722]
[1731790313824,0.0305,91005.0,90991.0,0.01030323]
[1731790313825,0.3608,91001.0,90991.0,0.01030323]
[1731790314011,0.3608,91001.0,90990.0,0.05492]
[1731790314012,0.13096395,90999.0,90990.0,0.05492]
[1731790314324,0.13096395,90995.0,90990.0,0.05492]
[1731790314523,0.1637568,90995.0,90990.0,0.05492]
[1731790314824,0.1637568,90995.0,90984.0,0.3608]
[1731790314825,0.054922,90988.0,90984.0,0.415724]
[1731790315025,0.054922,90988.0,90985.0,0.054923]
[1731790315232,0.2186788,90988.0,90975.0,0.3608]
[1731790315526,0.10834816,90988.0,90975.0,0.3608]
[1731790315911,0.10834816,90988.0,90974.0,0.05493]
[1731790315912,0.054927,90979.0,90974.0,0.05493]
[1731790316110,0.10835316,90979.0,90978.0,0.05402854]
[1731790317024,0.10835316,90979.0,90978.0,0.05416784]
[1731790317621,0.1640577,90979.0,90978.0,0.05416784]
[1731790318810,0.1953577,90979.0,90978.0,0.05416784]
[1731790319011,0.2260577,90979.0,90978.0,0.05416784]
[1731790319211,0.17263154,90979.0,90978.0,0.05416784]
[1731790319411,0.30369947,90979.0,90978.0,0.05416784]
[1731790320229,0.17263154,90979.0,90978.0,0.0525193]
[1731790320724,0.062,90979.0,90978.0,0.0525193]
[1731790320913,0.24524838,90979.0,90978.0,0.0525193]
[1731790321116,0.11418,90979.0,90978.0,0.0525193]
[1731790321413,0.24524838,90979.0,90978.0,0.0525193]
[1731790321630,0.11418,90979.0,90978.0,0.0525193]
[1731790322014,0.0313,90979.0,90978.0,0.0525193]
[1731790322527,0.13575722,90979.0,90978.0,0.0525193]
[1731790323023,0.0313,90979.0,90978.0,0.0525193]
[1731790325021,0.13575722,90979.0,90978.0,0.0525193]
[1731790326919,0.82631722,90979.0,90978.0,0.00230492]
[1731790327121,1.07640605,90979.0,90955.0,0.05591991]
[1731790327434,0.054941,90956.0,90955.0,0.05591991]
[1731790328022,0.054941,90956.0,90955.0,0.05604457]
[1731790329123,0.054941,90956.0,90955.0,0.00012466]
[1731790329317,0.10849612,90956.0,90955.0,0.00012466]
[1731790329523,0.10849769,90956.0,90955.0,0.00012466]
[1731790329724,0.43833769,90956.0,90955.0,0.00012466]
[1731790330425,0.054945,90949.0,90941.0,0.00063]
[1731790330627,0.054945,90949.0,90941.0,0.04287]
[1731790330628,0.415749,90942.0,90941.0,0.04287]
[1731790332721,0.498669,90942.0,90941.0,0.04287]
[1731790334040,0.415749,90942.0,90941.0,0.04287]
[1731790336735,0.054957,90929.0,90923.0,0.0303]
[1731790336939,0.41576,90924.0,90923.0,0.0303]
[1731790337123,0.41576,90924.0,90913.0,0.0331]
[1731790337124,0.054966,90914.0,90913.0,0.0331]
[1731790337827,0.054966,90914.0,90913.0,0.03319527]
[1731790341845,0.415766,90914.0,90913.0,9.527e-05]
[1731790343935,0.415766,90914.0,90913.0,6.62e-06]
[1731790345524,0.054969,90910.0,90909.0,0.00164984]
[1731790345731,0.52032121,90910.0,90909.0,0.00164984]
[1731790346136,0.054974,90901.0,90894.0,0.0938]
[1731790346337,0.415774,90901.0,90894.0,0.0938]
[1731790346639,0.054978,90895.0,90894.0,0.02875738]
[1731790346833,0.054978,90895.0,90894.0,0.0288322]
[1731790350356,0.054978,90895.0,90894.0,7.482e-05]
[1731790357433,0.137938,90895.0,90894.0,7.482e-05]
[1731790359348,0.13059909,90897.0,90894.0,7.482e-05]
[1731790359536,0.3608,90901.0,90894.0,7.482e-05]
[1731790359537,0.49139909,90901.0,90894.0,0.11009247]
[1731790359732,0.054976,90899.0,90898.0,0.054976]